Cogmind - Beta 17 @@@ ROGUE MODE // 2026.08.16 @ 17:56:26 Player: Marc Result: Self-destructed Performance ------------- Evolutions (3) 1500 Regions Visited (6) 1200 Robots Destroyed (18) 90 Value Destroyed (345) 345 Prototype IDs (26) 520 Alien Tech Used (0) 0 Bonus (300) 300 TOTAL SCORE: 3955 Bonus ------- Aligned with FarCom 300 Cogmind --------- Core Integrity 700/700 Matter 123/300 Energy 248/250 System Corruption 3% Temperature Cool (0) Movement Hovering (48) Location -7/Factory Parts ------- > --- POWER (1) -------- Ion Engine > --- PROPULSION (4) --- Hover Unit Hover Unit Improved Hover Unit Gravmag System > --- UTILITY (6) ------ Medium Storage Unit Advanced Weight Redist. System Signal Interpreter Improved Terrain Scanner Improved Terrain Scan Processor Transmission Jammer > --- WEAPON (2) ------- Missile Launcher Longsword +1 > --- INVENTORY (10) --- Hover Unit Hover Unit Gravmag System Compact Matter Pod (0) Improved Melee Analysis Suite Advanced ECM Suite Bomb Drone Bay (16/16) Mining Claw Peak State ------------ > --- POWER ------------ Ion Engine > --- PROPULSION ------- Hover Unit Hover Unit Improved Hover Unit Gravmag System > --- UTILITY ---------- Medium Storage Unit Advanced Weight Redist. System Signal Interpreter Improved Terrain Scanner Improved Terrain Scan Processor Advanced ECM Suite > --- WEAPON ----------- Missile Launcher Longsword +1 > --- INVENTORY -------- Hover Unit Hover Unit Gravmag System Compact Matter Pod Experimental Sensor Array Improved Melee Analysis Suite Transmission Jammer Bomb Drone Bay Mining Claw [Rating: 39] Favorites ----------- Power Light Ion Engine Engine Light Ion Engine Propulsion Hover Unit Leg Aluminum Leg Hover Unit Hover Unit Utility Medium Storage Unit Device Weight Redist. System Storage Medium Storage Unit Processor Signal Interpreter Weapon Longsword +1 Energy Gun Small Laser Ballistic Gun Light Assault Rifle Launcher Missile Launcher Slashing Weapon Longsword +1 Build | -11 -10 -10 -10 -9 -8 -7 ------- Run | Yrd Mat Min Exi Min Mat Fac Slots Evolved 6 | . . . . . 4 2 Power . | . . . . . . . Propulsion 2 | . . . . . 1 1 Utility 4 | . . . . . 3 1 Weapon . | . . . . . . . Parts Attached 33 | . 6 4 1 3 15 4 Power 5 | . 1 1 . 1 2 . Engine 5 | . 1 1 . 1 2 . Core . | . . . . . . . Reactor . | . . . . . . . Propulsion 10 | . 2 1 . 1 4 2 Treads . | . . . . . . . Leg . | . . . . . . . Wheel . | . . . . . . . Hover 10 | . 2 1 . 1 4 2 Flight . | . . . . . . . Utility 12 | . 1 2 . . 7 2 Device 8 | . . . . . 6 2 Storage 1 | . 1 . . . . . Processor 3 | . . 2 . . 1 . Hackware . | . . . . . . . Protection . | . . . . . . . Artifact . | . . . . . . . Weapon 6 | . 2 . 1 1 2 . Energy Gun 2 | . 1 . . . 1 . Energy Cannon . | . . . . . . . Ballistic Gun 1 | . 1 . . . . . Ballistic Cannon . | . . . . . . . Launcher 2 | . . . . 1 1 . Special Weapon . | . . . . . . . Impact Weapon . | . . . . . . . Slashing Weapon 1 | . . . 1 . . . Piercing Weapon . | . . . . . . . Special Melee Weapon . | . . . . . . . Unidentified Prototypes 3 | . . . . . 3 . Parts Lost 5 | . 2 . . 1 1 1 Power 2 | . 1 . . . . 1 Propulsion 2 | . . . . 1 1 . Utility . | . . . . . . . Weapon 1 | . 1 . . . . . Highest Loss Streak 2 | . 2 . . 1 1 1 To Critical Strikes . | . . . . . . . Average Backups 8 | 6 7 8 9 8 8 8 Power . | 1 . . . . . . Propulsion 4 | 4 5 6 6 5 3 2 Utility 2 | . . . 1 2 2 4 Weapon 1 | 1 1 1 2 1 2 1 Tool/Special . | . . . . . . . Unused Backups 16 | . 10 1 . . . 5 Power 1 | . 1 . . . . . Propulsion 9 | . 7 . . . . 2 Utility 3 | . 1 . . . . 2 Weapon 3 | . 1 1 . . . 1 Tool/Special . | . . . . . . . Average Slot Usage (%) 88 | . 76 100 90 97 84 95 Engine 10 | . 14 14 14 14 8 6 Hover 27 | . 24 28 28 27 26 30 Device 11 | . . . . . 15 18 Storage 10 | . 14 14 14 14 9 7 Processor 13 | . . 14 14 14 14 15 Energy Gun 2 | . 5 14 5 . . . Ballistic Gun 3 | . 14 14 5 . . . Launcher 1 | . . . . 12 . 7 Slashing Weapon 7 | . . . 8 14 9 7 Peak Build Rating 39 | 6 7 10 15 17 32 39 Average Rating 20 | 6 5 9 12 16 22 35 On Entrance 13 | 6 6 7 9 15 17 32 Avg Prop Armor Cover (%) . | . . . . . . . Naked Turns . | . . . . . . . Heaviest Build 28 | 11 19 15 16 19 25 28 Greatest Support 34 | 20 20 12 12 12 28 34 Greatest Overweight (x) 3 | . 1 1 1 3 1 1 Average Overweight (x) . | . . 1 1 1 . . Largest Inventory Capacity 10 | 8 10 10 10 10 10 10 Average Capacity 9 | 8 8 10 10 10 10 10 Most Carried 10 | 6 9 10 10 10 10 10 Average Carried 9 | 6 7 9 10 9 9 9 Final Capacity 10 | 8 10 10 10 10 10 10 Final Carried 10 | 6 9 10 10 10 9 9 Class Distribution -------------------- 64% | Scout 29% | Mutant 3% | Ninja Dominant Class ---------------- Mutant | -10/Materials Mutant | -10/Mines Mutant | -10/Exiles Mutant | -9/Mines Scout | -8/Materials Scout | -7/Factory Resources | -11 -10 -10 -10 -9 -8 -7 ----------- Run | Yrd Mat Min Exi Min Mat Fac Matter Collected 487 | 200 . 110 . 65 70 42 Remotely . | . . . . . . . Salvage Created 437 | . 48 132 . 20 195 42 Parts 33 | . 6 6 . 5 12 4 Haulers Intercepted 1 | . . . . . 1 . Recyclers Shooed . | . . . . . . . Parts Field Recycled . | . . . . . . . Retrieved Matter . | . . . . . . . Parts Self-Destructed . | . . . . . . . Prevented . | . . . . . . . Parts Restored . | . . . . . . . Kills | -11 -10 -10 -10 -9 -8 -7 ------- Run | Yrd Mat Min Exi Min Mat Fac Combat Hostiles Destroyed 12 | . . 3 . 3 5 1 Melee 3 | . . . . . 2 1 Guns 3 | . . 3 . . . . AOE 6 | . . . . 3 3 . Classes Destroyed 9 | . 3 2 . . 3 1 Worker 1 | . 1 . . . . . Builder 1 | . 1 . . . . . Hauler 1 | . . . . . 1 . Recycler 1 | . . 1 . . . . Watcher 2 | . 1 . . . 1 . Swarmer 9 | . . 3 . 3 3 . Sentry 1 | . . . . . 1 . Hunter 1 | . . . . . 1 . Programmer 1 | . . . . . . 1 Best Kill Streak 3 | . 3 2 . 3 3 1 Combat Bots Only 3 | . . 2 . 3 3 1 Max Kills in Single Turn 2 | . 2 1 . 2 2 1 Gunslinging . | . . . . . . . Exploded 2 | . . . . 2 2 . Melee 1 | . . . . . 1 1 Uniques/NPCs Destroyed . | . . . . . . . Combat | -11 -10 -10 -10 -9 -8 -7 -------- Run | Yrd Mat Min Exi Min Mat Fac Hostile Shots Fired 71 | . . 22 . 18 23 8 Missed 26 | . . 6 . 7 9 4 Hits 45 | . . 16 . 11 14 4 Projectile 45 | . . 16 . 11 14 4 Critical Strikes 1 | . . . . . 1 . Part Disruptions 1 | . . . . . 1 . Damage Taken 629 | . 96 128 . 127 217 61 Core 138 | . 11 26 . 33 68 . Absorbed by Shields . | . . . . . . . Core Remaining (%) 86 | 100 . . . 72 87 . Volleys Fired 26 | . 4 16 . 3 3 . Largest 2 | . 2 2 . 1 1 . Hottest 60 | . 60 60 . 30 36 . Shots Fired 45 | . 7 32 . 3 3 . Gun 39 | . 7 32 . . . . Cannon . | . . . . . . . Launcher 6 | . . . . 3 3 . Special . | . . . . . . . Kinetic 20 | . 4 16 . . . . Thermal 16 | . . 16 . . . . Explosive 6 | . . . . 3 3 . Electromagnetic 3 | . 3 . . . . . Robot Hit Streak 4 | . 2 4 . 2 . . Robot Miss Streak 5 | . 3 5 . 1 3 . Penetration Max . | . . . . . . . Secondary Targets . | . . . . . . . Shots Hit Robots 31 | . 2 15 . 3 9 2 Core Hits 21 | . 3 6 . 2 9 1 Critical Kills . | . . . . . . . Critical Parts Destroyed . | . . . . . . . Critical Strikes 1 | . . . . 1 . . Sever 1 | . . . . 1 . . Melee Attacks 20 | . . . . 2 15 3 Impact . | . . . . . . . Slashing 20 | . . . . 2 15 3 Piercing . | . . . . . . . Sneak Attacks 1 | . . . . . 1 . Combat Hostiles . | . . . . . . . Follow-up Attacks . | . . . . . . . Damage Inflicted 1253 | . 148 158 . 184 652 111 Guns 186 | . 28 158 . . . . Cannons . | . . . . . . . Explosions 461 | . 120 . . 149 192 . Melee 606 | . . . . 35 460 111 Ramming . | . . . . . . . Kinetic 77 | . 8 69 . . . . Thermal 209 | . 120 89 . . . . Explosive 341 | . . . . 149 192 . Electromagnetic 20 | . 20 . . . . . Impact . | . . . . . . . Slashing 606 | . . . . 35 460 111 Piercing . | . . . . . . . Highest Corruption 3 | . . . . . 1 3 Average Corruption 2 | . . . . . 1 2 Corruption Purged . | . . . . . . . Corruption Blocked . | . . . . . . . Effects 6 | . . . . . . 6 Message Errors 3 | . . . . . . 3 Heat Flow Errors 1 | . . . . . . 1 Alerts 2 | . . . . . . 2 Overload Shots . | . . . . . . . Overflow Damage 170 | . 89 . . 8 48 25 Projectiles . | . . . . . . . Explosions 109 | . 89 . . 8 12 . Melee 61 | . . . . . 36 25 Knockbacks . | . . . . . . . Impact . | . . . . . . . Kinetic . | . . . . . . . Secondary . | . . . . . . . Self-Inflicted Damage 192 | . 96 . . 37 59 . Shots 5 | . 1 . . 1 3 . Rammed . | . . . . . . . Targets Rammed . | . . . . . . . Kicked . | . . . . . . . Crushed . | . . . . . . . Highest Temperature 233 | . 48 84 . . 5 233 Average Temperature 46 | . 20 38 . . 5 120 Received Heat Transfer 72 | . . . . . 72 . Siege Activations . | . . . . . . . Martial Activations . | . . . . . . . Shielding Activations . | . . . . . . . Robots Disrupted . | . . . . . . . Combat Hostiles . | . . . . . . . Robots Corrupted . | . . . . . . . Combat Hostiles . | . . . . . . . Parts Fried . | . . . . . . . Impact Corruptions . | . . . . . . . Robots Melted . | . . . . . . . Combat Hostiles . | . . . . . . . Parts Melted . | . . . . . . . Heat Transferred 250 | . 50 200 . . . . Parts Sabotaged . | . . . . . . . Parts Stolen . | . . . . . . . Parts Stripped . | . . . . . . . Power Chain Reactions 1 | . 1 . . . . . Alert | -11 -10 -10 -10 -9 -8 -7 ------- Run | Yrd Mat Min Exi Min Mat Fac Maximum Alert Level . | . . . . . . . Low Security (%) 100 | 100 100 100 . 100 100 100 Level 1 . | . . . . . . . Level 2 . | . . . . . . . Level 3 . | . . . . . . . Level 4 . | . . . . . . . Level 5 . | . . . . . . . High Security . | . . . . . . . Max Security . | . . . . . . . Peak Influence 172 | . 63 50 . 89 172 77 Initial 77 | . . . . . . 77 Average 19 | . 9 4 . 31 24 13 Influence Increases 700 | . 102 75 . 114 323 86 Destroy 0b10 Robot/C 240 | . . 60 . 60 100 20 Destroy 0b10 Robot/NC 30 | . 15 5 . . 10 . Destroy Leader 66 | . 2 10 . 10 34 10 Successful Hack 19 | . 9 . . . 5 5 Disable Machine 60 | . 45 . . . 15 . Destroy Structure 120 | . 16 . . 29 24 51 Partial Spotted 30 | . 15 . . . 15 . Lose Combat Pursuer 135 | . . . . 15 120 . Influence Decreases 681 | . 102 75 . 114 151 239 Entered New Map 95 | . . . . . . 95 Time Decay 546 | . 82 75 . 104 141 144 Lost Part 30 | . 20 . . 10 . . Lost Ally 10 | . . . . . 10 . Squads Dispatched 6 | . 1 . . . 1 4 Investigation 3 | . 1 . . . . 2 Extermination 1 | . . . . . . 1 Reinforcement 2 | . . . . . 1 1 Assault . | . . . . . . . Garrison . | . . . . . . . Intercept . | . . . . . . . Searches Triggered . | . . . . . . . Construction Impeded . | . . . . . . . Haulers Reinforced . | . . . . . . . Active Scanning Responses . | . . . . . . . Cargo Convoy Interrupts . | . . . . . . . Stealth | -11 -10 -10 -10 -9 -8 -7 --------- Run | Yrd Mat Min Exi Min Mat Fac Distress Signals 1 | . . . . . 1 . Communications Jammed . | . . . . . . . Distress Signals . | . . . . . . . Times Spotted 30 | . 4 3 . 4 17 2 Peak Tracking Total 4 | . 3 2 . 4 4 1 Tactical Retreats 6 | . . . . 1 5 . Traps | -11 -10 -10 -10 -9 -8 -7 ------- Run | Yrd Mat Min Exi Min Mat Fac Traps Triggered 3 | . 1 . . . 2 . Indirectly . | . . . . . . . Trap Hack Attempts . | . . . . . . . Triggered . | . . . . . . . Disarmed . | . . . . . . . Reprogrammed . | . . . . . . . Reused . | . . . . . . . Traps Extracted . | . . . . . . . Installed . | . . . . . . . Triggered . | . . . . . . . Machines | -11 -10 -10 -10 -9 -8 -7 ---------- Run | Yrd Mat Min Exi Min Mat Fac Machines Disabled 4 | . 3 . . . 1 . Max in Single Turn 3 | . 3 . . . 1 . Machines Repaired . | . . . . . . . Machines Dismantled . | . . . . . . . Machines Sabotaged . | . . . . . . . Overloaded Fab Kills . | . . . . . . . Hacking | -11 -10 -10 -10 -9 -8 -7 --------- Run | Yrd Mat Min Exi Min Mat Fac Machines Accessed 10 | . 3 1 1 . 2 3 Terminals 5 | . 2 . . . 2 1 Fabricators 1 | . . . . . . 1 Repair Stations . | . . . . . . . Recycling Units 1 | . 1 . . . . . Scanalyzers . | . . . . . . . Garrison Access 1 | . . . . . . 1 Total Hacks 19 | . 5 1 1 . 5 7 Successful 9 | . 3 1 1 . 2 2 Failed 10 | . 2 . . . 3 5 Catastrophic 4 | . . . . . . 4 Database Lockouts . | . . . . . . . Manual 14 | . 6 . 1 . 5 2 Terminals 11 | . 4 . . . 5 2 Fabricators 2 | . . . . . . 2 Repair Stations . | . . . . . . . Recycling Units 1 | . 1 . . . . . Scanalyzers . | . . . . . . . Garrison Access 3 | . . . . . . 3 Terminal Hacks 2 | . . 1 1 . . . Open Door 1 | . . 1 . . . . Proto ID Catalog 1 | . . . 1 . . . Fabricator Hacks 2 | . . . . . . 2 Network Status 1 | . . . . . . 1 Build 1 | . . . . . . 1 Repair Station Hacks . | . . . . . . . Recycling Unit Hacks . | . . . . . . . Scanalyzer . | . . . . . . . Garrison Access Hacks . | . . . . . . . Unauthorized Hacks 5 | . 3 . . . 2 . Terminals 4 | . 2 . . . 2 . Assimilate 1 | . . . . . 1 . Botnet 3 | . 2 . . . 1 . Fabricators . | . . . . . . . Repair Stations . | . . . . . . . Recycling Units 1 | . 1 . . . . . Mask 1 | . 1 . . . . . Scanalyzers . | . . . . . . . Garrison Access . | . . . . . . . Data Cores Recovered . | . . . . . . . Used . | . . . . . . . Hacking Detections 5 | . 1 . . . 1 3 Full Trace Events 2 | . . . . . . 2 Feedback Events . | . . . . . . . Feedback Blocked . | . . . . . . . Robot Schematics Acquired . | . . . . . . . Robots Built 2 | . . . . . . 2 Authchips . | . . . . . . . Time 81 | . . . . . . 81 Total Robot Build Rating 2 | . . . . . . 2 Part Schematics Acquired . | . . . . . . . Parts Built . | . . . . . . . Authchips . | . . . . . . . Time . | . . . . . . . Total Part Build Rating . | . . . . . . . Part Studies Acquired . | . . . . . . . Parts Repaired . | . . . . . . . Time . | . . . . . . . Parts Recycled . | . . . . . . . Recycled Matter . | . . . . . . . Retrieved Matter . | . . . . . . . Retrieved Components . | . . . . . . . Parts Scanalyzed . | . . . . . . . Part Schematics Acquired . | . . . . . . . Parts Damaged . | . . . . . . . Bothacking | -11 -10 -10 -10 -9 -8 -7 ------------ Run | Yrd Mat Min Exi Min Mat Fac Used RIF Installer . | . . . . . . . Robots Hacked . | . . . . . . . Non-combat . | . . . . . . . Combat . | . . . . . . . Robot Hacks Applied . | . . . . . . . Relay Couplers Released . | . . . . . . . Fabnet Peak Effective % . | . . . . . . . Robots Rewired . | . . . . . . . Allies Hacked . | . . . . . . . Hacks Repelled . | . . . . . . . Allies | -11 -10 -10 -10 -9 -8 -7 -------- Run | Yrd Mat Min Exi Min Mat Fac Total Allies 5 | . . 2 . . 1 2 Largest Group 2 | . . 2 1 . 1 2 Highest-Rated Group 44 | . . 44 31 . 10 20 Highest-Rated Ally 31 | . . 31 31 . 10 10 Total Orders 3 | . . . . . 1 2 TUNNEL 2 | . . . . . . 2 RETURN 1 | . . . . . 1 . Ally Attacks . | . . . . . . . Total Damage . | . . . . . . . Kills . | . . . . . . . Allies Corrupted . | . . . . . . . Allies Melted . | . . . . . . . Intel | -11 -10 -10 -10 -9 -8 -7 ------- Run | Yrd Mat Min Exi Min Mat Fac Active Infowar (turns) 5076 | . . 175 . . 4138 763 Optics 175 | . . 175 . . . . Sensors 2 | . . . . . 2 . Terrain 4901 | . . . . . 4138 763 Jamming 2 | . . . . . . 2 ECM 4 | . . . . . . 4 Robot Analysis Total . | . . . . . . . Derelict Logs Recovered 2 | . . 1 . 1 . . Drone Launches 16 | . . . . . 16 . Drone Recoveries 16 | . . . . . 16 . Exploration | -11 -10 -10 -10 -9 -8 -7 ------------- Run | Yrd Mat Min Exi Min Mat Fac Turns Passed 6992 | 5 454 870 464 296 4140 763 Spaces Moved 2220 | 1 193 626 398 225 574 203 Core . | . . . . . . . Treads . | . . . . . . . Legs 35 | 1 34 . . . . . Wheels . | . . . . . . . Hover 2185 | . 159 626 398 225 574 203 Flight . | . . . . . . . Fastest Speed 48 | 120 56 116 116 116 52 48 Average Speed 92 | 120 94 116 116 118 52 53 Slowest Speed 240 | 120 120 116 116 240 120 108 Overloaded Moves . | . . . . . . . Propulsion Burnouts . | . . . . . . . Robots Hopped . | . . . . . . . Potential Cave-ins . | . . . . . . . Cave-ins Triggered . | . . . . . . . Exploration Rate (%) 43 | 2 47 84 63 55 48 6 Regions Visited 6 Branch Regions 3 Pre-discovered Areas 1 | . . . . 1 . . Known Exits Taken 4 | . . 1 1 1 1 . Unknown Exits Taken 2 | 1 1 . . . . . Scrap Searched 6 | . . 3 . 3 . . Spaces Dug 6 | . . . . . 5 1 Terrain Destroyed 82 | . 19 . . 29 33 1 Melee 6 | . . . . . 5 1 Projectile . | . . . . . . . AOE 76 | . 19 . . 29 28 . Terrain Rammed . | . . . . . . . Walls Destroyed . | . . . . . . . Machines Disabled . | . . . . . . . Actions | -11 -10 -10 -10 -9 -8 -7 --------- Run | Yrd Mat Min Exi Min Mat Fac Total 7111 | 5 464 743 400 250 4395 854 Wait 4749 | 5 236 91 . 14 3767 636 Move 2214 | . 192 625 397 224 573 203 Hop . | . . . . . . . Pick Up 30 | . 13 3 . 3 7 4 Fast Attach 7 | . 1 . 1 . 5 . Attach 21 | . 5 2 . 2 9 3 Detach 8 | . 4 . . . 4 . Swap 12 | . . 2 . 1 6 3 Drop 24 | . 9 4 2 1 6 2 Fire 26 | . 4 16 . 3 3 . Melee 20 | . . . . 2 15 3 Ram . | . . . . . . . Kick . | . . . . . . . Crush . | . . . . . . . Escape Stasis . | . . . . . . . Rewire . | . . . . . . . Trap . | . . . . . . . Miscellaneous . | . . . . . . . Route ------- -11/Scrapyard -10/Materials (discovered 2 exits: *Min / *Sub) -10/Mines (discovered 4 exits: *Mat x2 / *Exi / *Sub) -10/Exiles (discovered 2 exits: *Min x2) -9/Mines -8/Materials (discovered 2 exits: *Fac x2) -7/Factory History --------- Turn | Location | Event 6 | -11/Scrapyard | Discovered new exit (range 0) 6 | -11/Scrapyard | Entered Materials 97 | -10/Materials | Discovered new exit (range 4) 308 | -10/Materials | Build established: Mutant 394 | -10/Materials | Discovered new exit (range 6) 460 | -10/Materials | Entered Mines 472 | -10/Mines | Discovered new exit (range 9) 475 | -10/Mines | Met a Derelict bent on vengeance 486 | -10/Mines | Found the Drone Emporium 499 | -10/Mines | Found Prototype Device 609 | -10/Mines | Discovered new exit (range 9) 637 | -10/Mines | Identified exit to Materials 706 | -10/Mines | Discovered new exit (range 12) 718 | -10/Mines | Identified exit to Subcaves 808 | -10/Mines | Learned Materials terminal intel 823 | -10/Mines | Joined a pair of Derelicts in attacking an 0b10 outpost 1324 | -10/Mines | Deemed a non-threat by the Exiles lab entrance 1324 | -10/Mines | Discovered new exit (range 5) 1328 | -10/Mines | Identified exit to Exiles 1330 | -10/Mines | Entered Exiles 1330 | -10/Exiles | Accompanied by 1 ally 1359 | -10/Exiles | Met 8R-AWN 1360 | -10/Exiles | Led the pair of lost Derelicts to a safe place 1378 | -10/Exiles | Met EX-HEX 1415 | -10/Exiles | Met EX-BIN 1434 | -10/Exiles | Aligned with FarCom system 1435 | -10/Exiles | Given EX-Vault access code 1488 | -10/Exiles | Opened EX-Vault 1500 | -10/Exiles | Found Longsword +1 1524 | -10/Exiles | Warned to stay clear of 0b10 Research branches 1606 | -10/Exiles | Discovered new exit (range 14) 1620 | -10/Exiles | Identified exit to Mines 1718 | -10/Exiles | Met EX-DEC 1777 | -10/Exiles | Discovered exit to Mines (range 15) 1794 | -10/Exiles | Left Exiles lab with Longsword +1 1794 | -10/Exiles | Entered Mines 1887 | -9/Mines | Found a damaged Exp. Sensor Array with a note attached 1890 | -9/Mines | Found Prototype Device 1962 | -9/Mines | Learned location of Recycling (-9) 1992 | -9/Mines | Discovered new exit (range 9) 2000 | -9/Mines | Identified exit to Materials 2090 | -9/Mines | Entered Materials 2090 | -8/Materials | Evolved 4 slots: Propulsion x1, Utility x3 2091 | -8/Materials | Loaded intel: 12 terminal locations 2093 | -8/Materials | Identified Exp. Sensor Array 2095 | -8/Materials | Identified Bomb Drone Bay 2432 | -8/Materials | Build established: Scout 5736 | -8/Materials | Discovered new exit (range 11) 6191 | -8/Materials | Discovered new exit (range 16) 6201 | -8/Materials | Identified exit to Factory 6230 | -8/Materials | Entered Factory 6230 | -7/Factory | Evolved 2 slots: Propulsion x1, Utility x1 6906 | -7/Factory | Fabricated T-07 Excavator (x2) 6993 | -7/Factory | Self-destructed Last Messages --------------- >>Network(Status) Querying network status... 6 records found: (117,50) - Loaded: Biomechanical Wings (183,115) - Loaded: T-07 Excavator (56,196) - Building: EM Disruption Field (86,123) - Idle (128,112) - Loaded: G-47 Trooper (135,21) - Loaded: M-14 Sweeper >>Build Building T-07 Excavator... ETC: 81 06837_ |NK:MHMTEOYIFRYOZ,4V 06896_ System corrupted: IFF burst signal emitted. 06906_ Fabricator completes T-07 Excavator. 06912_ GFDPA3G>M0M LFGGQE#RJ6TYLV HERWYA4SRXO 06916_ Excavator 4b is excavating. 06937_ U-05 Engineer builds a Wall. 06979_ Dropped Exp. Sensor Array. 06980_ Connecting with Terminal... Map ----- +----------------------------------------------------+ | # [ "F " ## ?###?##### | | """" # ## ####????#? | | """" # """ """ ## ###?###### | | """" # """ """ #? ##?##?#?## | | """" + """ """ ## #?##?###?# | | # ## ###?###??# | | """" ############## ######??#? | | """" # ####?#########? | | """" # #### #####??##? | | """" # """ ####?########?? | | # """ ##?# #######??? | | """" + """ """ #### ##???###?? | | """" # "Y ###? #######??? | | ?""" # """ #?##?###?###?#? | | """" # #### ?###?##??# | | ??? ######"####### ####???### | | "??" # #### ?#?#??#??? | | "??" # """ """ ###? ######?#?? | | ?""? + """ """ #??? ###???#??? | | ??"" # """ """ #### #?#?##?#?? | | ??? ?# ! #?## ###??#???? | | "???? # ! "T" ##?# ##??###??? | | """ ?# """ #?## #########? | | ""??? # #??# ##! = #? | | ??"? #####+##+##### ## #? | | ??? ??#??## #### # @ #? | | ??? ??#?#?# ##?# " + """ #? | | ??????##### #### # """ #? | | ????? #?#?# #?### ## """ #? | | ???#??????# #???# #########? | | ???#??##### ##### #????????? | | ????# #?#??????? | | ??#?#### ##########?????##?? | | ???????# ##?##?????????????? | | ???????# ##???#????????#?#?? | | ????"??# ##???????#??#?#???? | | ??? ???# #???????#?????????? | | ???????+ ??##??#???????????? | | ???????# ####????#??????##????? | | ???????# #?????##??#????#???#?? | | ???????# ?????????????????????? | | ???????#??????????#???????????? | | ??????????????????????????????? | | ?????? ??#?????????###???#????? | | ???????????????????????#??????? | | ??????????????????????????????? | | ??????????????????????????????? | | ??????????????????????????????? | | ??????????????????????????????? | | ??????????????????????????????? | +----------------------------------------------------+ Best States ------------- Heat Dissipation 34 Energy Generation 14 Energy Capacity 250 Matter Stores 300 Matter Capacity 300 Sight Range 18 Terrain Scan Range 16 Terrain Scan Density 110 Additional Mass Support 9 Evasion (%) 55 Item Schematics ----------------- None Robot Schematics ------------------ None Fabricated ------------ T-07 Excavator | x2 | -7/Factory | Preloaded Repaired ---------- Nothing Studied --------- None Alien Tech Used ----------------- None Achievements -------------- None Challenges ------------ None Game ------ Seed ColdIntegratedPendant Manual? 0 Play Time 00:29:47 Cumulative 25.9 hours Start 2026.08.16 @ 17:22:08 End 2026.08.16 @ 17:56:26 Sessions 1 Manual Loads 0 Difficulty Rogue Special Mode None Game No. 78 Rogue 71 Adventurer 7 Explorer 0 Win Type - Total 0 Types 0/0/0/0/0/0/0/0/0/0 Lore% 29 Gallery% 33 Achievement% 27 Wizard Run 0 Options --------- Layout 0 ASCII 0 Keyboard 0 Movement Mouse Keybinds 0 Fullscreen 1 Font 18/SmallcapsGlow Map View 38x25 Zoom Use 96% Tactical HUD 1 Map Filters NONE Filters NONE Steam 1 RUN: b291b7f0-57c9-4451-b385-1a37c2db6292